bitfinex/quotes_ETHUSD_20240614
["timestamp","ask_amount","ask_price","bid_price","bid_amount"]
[1718406307784,3.29712654,3481.9,3481.3,2.87247]
[1718406307785,2.87216,3481.7,3481.3,2.87247]
[1718406307988,2.87247,3481.4,3481.0,2.87271]
[1718406308296,2.87247,3481.4,3480.9,2.87279]
[1718406308297,2.87247,3481.4,3481.1,2.87264]
[1718406308625,2.8725,3481.3,3480.9,2.87274]
[1718406308821,0.99965854,3481.3,3480.8,7.31]
[1718406309028,2.87282,3480.9,3480.8,7.31]
[1718406309229,2.87282,3480.9,3480.4,2.4393]
[1718406309230,2.873,3480.7,3480.4,2.87322]
[1718406309388,2.873,3480.7,3480.1,5.74688]
[1718406309389,2.87306,3480.6,3480.3,2.8733]
[1718406309912,2.87323,3480.4,3480.1,2.87345]
[1718406310224,2.87356,3480.0,3479.6,2.87388]
[1718406310539,2.87362,3480.0,3479.6,2.87388]
[1718406310683,2.87362,3480.0,3479.7,2.8738]
[1718406311046,2.87362,3480.0,3479.6,2.87388]
[1718406311242,2.8735,3480.1,3479.7,2.8738]
[1718406311589,1.3793454,3480.3,3479.9,2.87364]
[1718406311791,2.87263,3481.2,3480.6,2.87306]
[1718406311792,0.49662073,3480.7,3480.6,2.87306]
[1718406312025,1.3793454,3481.0,3480.7,2.87297]
[1718406312225,2.87266,3481.1,3480.7,2.87297]
[1718406312424,2.87274,3481.0,3480.6,2.87305]
[1718406312600,2.87288,3480.9,3480.5,2.87314]
[1718406312803,2.87288,3480.9,3480.2,2.87333]
[1718406312804,2.87306,3480.7,3480.2,2.87333]
[1718406313143,4.2524054,3480.7,3480.2,2.87333]
[1718406313930,2.87316,3480.5,3480.2,2.87333]
[1718406314102,2.87316,3480.5,3480.0,7.31]
[1718406314304,2.8733,3480.4,3480.0,2.87354]
[1718406315212,2.87351,3480.1,3479.8,2.4481]
[1718406315414,2.87351,3480.1,3479.8,5.32182]
[1718406315727,2.87351,3480.1,3479.8,2.87372]
[1718406316295,2.87364,3479.9,3479.6,2.87381]
[1718406316815,2.87358,3480.0,3479.7,2.8738]
[1718406318323,2.87375,3479.8,3479.5,2.87396]
[1718406318742,2.87375,3479.8,3479.4,5.32214]
[1718406319030,2.87375,3479.8,3479.4,2.4481]
[1718406319031,2.87393,3479.6,3479.4,2.4481]
[1718406319234,2.87356,3480.0,3479.4,2.4481]
[1718406319414,2.87332,3480.3,3479.8,2.87366]
[1718406319797,2.87332,3480.3,3479.9,2.87361]
[1718406321210,2.87348,3480.1,3479.7,2.8738]
[1718406321816,2.87368,3479.9,3479.6,1.615]
[1718406322138,2.87381,3479.7,3479.4,2.87405]
[1718406322302,2.87389,3479.6,3479.3,2.87412]
[1718406323553,2.87383,3479.7,3479.4,2.87402]
[1718406323719,2.87366,3479.9,3479.5,2.87389]
[1718406323923,2.87366,3479.9,3479.6,2.87386]
[1718406324119,2.87366,3479.9,3479.2,0.0223802]
[1718406324120,3.448365,3479.9,3479.2,0.0223802]
[1718406324333,2.87515,3478.1,3477.7,0.4496113]
[1718406324630,2.87453,3478.9,3477.9,2.87529]
[1718406324631,1.38069479,3478.3,3477.9,2.87529]
[1718406324831,2.87488,3478.4,3477.9,2.87529]
[1718406325017,1.38069479,3478.6,3478.1,2.87506]
[1718406325223,2.87383,3479.7,3478.3,2.87495]
[1718406325224,2.87447,3478.9,3478.3,2.87495]
[1718406325643,2.87455,3478.8,3478.3,2.87495]
[1718406325840,2.87465,3478.7,3478.3,2.87495]
[1718406326051,2.87465,3478.7,3478.2,2.87504]
[1718406326552,2.87465,3478.7,3478.3,2.87494]
[1718406327454,2.87465,3478.7,3478.1,2.87512]
[1718406327455,2.87458,3478.8,3478.2,2.87504]
[1718406327954,2.87474,3478.6,3478.2,2.87504]
[1718406328258,2.87472,3478.6,3478.2,2.87504]
[1718406330737,2.87481,3478.5,3478.2,2.87504]
[1718406331435,0.11427773,3478.4,3478.2,2.87504]
[1718406332217,2.87472,3478.6,3478.2,2.87504]
[1718406332459,0.11380539,3478.3,3478.2,2.87504]
[1718406332633,2.87472,3478.6,3478.2,2.87504]
[1718406333385,0.11071537,3478.5,3478.2,2.87504]
[1718406333984,0.11071537,3478.5,3478.3,2.87494]
[1718406334160,1.38043765,3479.8,3478.4,2.93237397]
[1718406334358,2.87422,3479.2,3478.4,2.93237397]
[1718406334557,2.87394,3479.6,3478.5,2.8748]
[1718406334786,2.87407,3479.4,3478.9,2.8744]
[1718406335088,2.87407,3479.4,3479.0,2.87437]
[1718406335385,0.11075287,3479.3,3479.0,2.87437]
[1718406336877,2.98489287,3479.3,3478.9,2.87446]
[1718406337061,0.11075287,3479.3,3478.5,2.87472]
[1718406337362,2.87424,3479.2,3478.7,2.87462]
[1718406337685,0.1102962,3479.1,3478.8,2.87453]
[1718406338691,0.1102962,3479.1,3478.9,2.87445]
[1718406339284,0.1102962,3479.0,3478.9,2.87445]
[1718406339448,2.87415,3479.3,3478.9,2.87445]
[1718406339651,0.1102962,3479.0,3478.9,2.87445]
[1718406339849,2.87415,3479.3,3478.9,2.87445]
[1718406340049,0.1102962,3479.0,3478.9,2.87445]
[1718406340250,2.87415,3479.3,3478.9,2.87445]
[1718406340487,0.1102962,3479.0,3478.9,2.87445]
[1718406340665,2.87415,3479.3,3478.9,2.87445]
[1718406340863,0.1102962,3479.0,3478.9,2.87445]
[1718406341063,2.87415,3479.3,3478.9,2.87445]
[1718406341265,0.1102962,3479.0,3478.9,2.87445]
[1718406341486,2.87415,3479.3,3478.9,2.87445]
[1718406341693,2.87415,3479.3,3478.4,3.611341]
[1718406341694,0.1102962,3479.0,3478.6,2.87471]
[1718406341857,2.87424,3479.2,3478.8,2.87455]
[1718406342053,0.1102962,3478.9,3478.8,2.87455]
[1718406342258,2.87424,3479.2,3478.8,2.87455]
[1718406342455,2.87424,3479.2,3477.9,12.49]
[1718406342456,2.87459,3478.8,3477.9,2.87527]
[1718406342655,2.87445,3479.0,3478.5,2.87475]
[1718406342880,0.1102962,3478.7,3478.5,2.87475]
[1718406343191,2.87445,3479.0,3478.5,2.87475]
[1718406343908,2.87506,3478.2,3477.8,2.87531]
[1718406344057,2.87456,3478.8,3478.1,2.87511]
[1718406344395,2.87456,3478.8,3478.2,2.87498]
[1718406344396,2.87473,3478.6,3478.2,2.87498]
[1718406344553,2.98517244,3478.7,3478.3,2.87492]
[1718406344756,2.87437,3479.1,3478.6,2.87464]
[1718406345196,2.87504,3478.3,3477.4,5.3381]
[1718406345519,2.87504,3478.3,3478.0,2.87521]
[1718406345722,2.87482,3478.5,3477.4,6.64721514]
[1718406345925,2.87482,3478.5,3477.5,1.85722151]
[1718406346228,2.87505,3478.2,3477.5,1.85722151]
[1718406346434,2.87505,3478.2,3476.6,2.3381]
[1718406346435,2.87548,3477.7,3476.6,2.3381]
[1718406346584,2.87585,3477.3,3476.6,2.3381]
[1718406346791,2.87585,3477.3,3477.0,2.87601]
[1718406347317,2.87555,3477.6,3477.1,2.87595]
[1718406347495,2.87533,3477.9,3477.0,2.87603]
[1718406347700,1.38056752,3478.1,3477.6,2.87546]
[1718406347922,1.38056752,3479.1,3477.9,2.87526]
[1718406348136,2.87478,3478.6,3478.1,2.87512]
[1718406348338,2.87458,3478.8,3478.2,2.87503]
[1718406348524,2.87463,3478.7,3478.2,2.87503]
[1718406348942,2.87463,3478.7,3478.4,2.87487]
[1718406349148,2.87508,3478.2,3477.8,2.87534]
[1718406349450,2.87508,3478.2,3477.7,2.87545]
[1718406349605,2.87514,3478.1,3477.5,2.3381]
[1718406349801,2.87514,3478.1,3477.7,2.87545]
[1718406350470,2.87538,3477.8,3477.5,2.87555]
[1718406350752,2.98540497,3478.0,3477.2,10.18582]
[1718406350753,2.87579,3477.3,3477.2,7.31]
[1718406350908,2.87578,3477.4,3477.0,5.21413]
[1718406351110,2.98594372,3477.3,3477.0,5.21413]
[1718406351410,2.98594372,3477.3,3477.0,2.3381]
[1718406351804,2.98594372,3477.3,3476.9,2.87609]
[1718406352027,2.87587,3477.2,3476.9,2.87609]
[1718406352208,2.98587369,3477.2,3476.9,2.87609]
[1718406352409,2.87604,3477.1,3476.7,2.87628]
[1718406352819,0.11000369,3477.0,3476.7,2.87628]
[1718406353223,0.11000369,3477.0,3476.8,2.8762]
[1718406354961,0.11000369,3477.0,3476.7,2.87628]
[1718406354962,0.11000369,3477.0,3476.9,2.87612]
[1718406355263,2.87571,3477.4,3477.0,2.87601]
[1718406355622,1.38064578,3478.0,3477.0,2.87601]
[1718406355872,3.0,3478.5,3477.4,2.87564]
[1718406355873,2.87538,3477.8,3477.4,2.87564]
[1718406356840,1.38064578,3478.3,3477.6,2.87551]
[1718406356841,2.87524,3478.0,3477.6,2.87551]
[1718406357491,2.87497,3478.3,3477.6,2.87551]
[1718406357631,0.97728264,3478.2,3477.6,2.87551]
[1718406357826,0.97728264,3478.2,3477.9,2.87527]
[1718406358137,2.87497,3478.3,3477.9,2.87527]
[1718406358336,2.87497,3478.3,3477.8,2.87536]
[1718406359937,2.87514,3478.1,3477.8,2.87536]
[1718406360129,2.87506,3478.2,3477.9,2.87528]
[1718406360330,3.46236,3478.4,3478.0,2.87521]
[1718406360331,3.221192,3478.3,3478.0,2.87521]
[1718406360541,2.87466,3478.7,3477.5,2.452]
[1718406360773,2.87455,3478.8,3478.4,2.87481]
[1718406361366,2.87455,3478.8,3478.5,2.87478]
[1718406361581,2.87448,3478.9,3478.5,2.87478]
[1718406361869,2.87456,3478.8,3478.4,2.87487]
[1718406362987,2.87456,3478.8,3478.5,2.87479]
[1718406364751,2.87448,3478.9,3478.5,2.87479]
[1718406365064,3.37654741,3478.9,3478.5,2.87479]
[1718406365268,2.87455,3478.8,3478.4,2.87486]
[1718406365456,2.87466,3478.7,3478.3,2.87495]
[1718406366886,2.87505,3478.2,3477.9,10.18528]
[1718406367087,2.87505,3478.2,3477.8,2.87536]
[1718406367277,2.87497,3478.3,3477.5,5.32755]
[1718406367484,2.87497,3478.3,3477.6,2.87554]
[1718406367485,2.87522,3478.0,3477.6,2.87554]
[1718406367995,2.87505,3478.2,3477.4,10.1857]
[1718406367996,2.87544,3477.8,3477.4,10.1857]
[1718406368377,2.87546,3477.7,3477.4,10.1857]
[1718406368865,0.11001872,3477.6,3477.4,10.1857]
[1718406369554,2.98556872,3477.6,3477.4,7.31]
[1718406369755,0.11001872,3477.6,3477.4,7.31]
[1718406370250,5.75124,3477.5,3477.4,7.31]
[1718406370454,2.8758,3477.3,3477.0,2.876]
[1718406370879,2.87544,3477.8,3477.4,2.87571]
[1718406371204,0.10975992,3477.7,3477.4,2.87571]
[1718406371581,0.10975992,3477.6,3477.4,2.87571]
[1718406371784,2.87539,3477.8,3477.4,2.87571]
[1718406372000,0.10975992,3477.7,3477.4,2.87571]
[1718406372191,2.87539,3477.8,3477.4,2.87571]
[1718406372687,0.10975992,3477.7,3477.6,5.75108]
[1718406372889,2.87503,3478.3,3477.8,2.87536]
[1718406372890,2.87505,3478.2,3477.8,2.87536]
[1718406373502,2.87505,3478.2,3477.6,2.87554]
[1718406373503,2.87505,3478.2,3477.6,2.87552]
[1718406373697,2.87521,3478.0,3477.6,2.87552]
[1718406373899,2.8753,3477.9,3477.6,2.87552]
[1718406374109,2.8753,3477.9,3477.5,2.87561]
[1718406374315,2.8753,3477.9,3477.4,2.8757]
[1718406374520,3.450384,3477.9,3477.2,2.87583]
[1718406374725,2.87534,3477.9,3477.2,2.87583]
[1718406375327,2.8752,3478.1,3477.6,2.87548]
[1718406375519,2.87531,3477.9,3477.5,2.87561]
[1718406379136,1.43344514,3477.8,3476.5,2.87644]
[1718406379304,2.87612,3476.9,3476.6,2.87635]
[1718406380433,2.87629,3476.7,3476.4,2.87653]
[1718406380613,2.87622,3476.8,3476.4,2.87653]
[1718406381738,2.87613,3476.9,3476.5,2.87644]
[1718406381939,2.87578,3477.4,3476.7,2.87628]
[1718406382105,2.87593,3477.2,3476.8,2.87619]
[1718406383138,2.87593,3477.2,3476.9,2.87612]
[1718406383530,2.8758,3477.3,3476.9,2.87612]
[1718406385241,0.1046618,3477.2,3476.9,2.87612]
[1718406385571,2.8758,3477.3,3476.9,2.87612]
[1718406385705,0.1046618,3477.1,3476.8,2.87618]
[1718406385907,2.87569,3477.5,3477.1,2.87595]
[1718406389329,2.87569,3477.5,3477.2,2.87587]
[1718406389736,2.8756,3477.6,3477.3,2.87578]
[1718406391177,2.8756,3477.6,3477.2,2.87586]
[1718406391178,2.87548,3477.7,3477.4,2.8757]
[1718406392171,2.87548,3477.7,3477.4,2.8557]
[1718406392378,2.87555,3477.6,3477.3,2.87577]
[1718406394549,2.87564,3477.5,3477.2,2.87585]
[1718406394743,2.87577,3477.4,3477.1,2.87594]
[1718406399566,2.87586,3477.3,3476.9,5.26266]
[1718406399874,2.87586,3477.3,3477.0,2.87603]
[1718406400331,0.10477436,3477.2,3477.0,2.87603]
[1718406400532,2.87586,3477.3,3477.0,2.87603]
[1718406400727,0.10477436,3477.1,3477.0,2.87603]
[1718406400931,2.87586,3477.3,3477.0,2.87603]
[1718406401151,0.10477436,3477.1,3477.0,2.87603]
[1718406401353,4.75336411,3477.4,3477.1,2.87595]
[1718406401543,2.87572,3477.4,3477.1,2.87595]
[1718406403142,3.37290262,3477.4,3477.1,2.87595]
[1718406403533,2.87572,3477.4,3477.1,2.87595]
[1718406404068,4.25610149,3477.5,3477.2,2.87587]
[1718406404233,2.87572,3477.4,3477.1,2.87593]
[1718406404434,3.37290262,3477.4,3477.1,2.87593]
[1718406404630,1.87764411,3477.4,3477.1,2.87593]
[1718406406043,0.49718262,3477.4,3477.1,2.87593]
[1718406406277,1.87764411,3477.4,3477.1,2.87593]
[1718406406790,4.75336411,3477.4,3477.1,2.87593]
[1718406407073,4.25618149,3477.4,3477.1,2.87593]
[1718406407235,4.75336411,3477.4,3477.1,2.87593]
[1718406407573,4.25618149,3477.4,3477.1,2.87593]
[1718406407773,4.75365726,3477.4,3477.1,2.87593]
[1718406407971,4.25648294,3477.4,3477.1,2.87593]
[1718406408271,4.75365726,3477.4,3477.1,2.87593]
[1718406408433,4.25648294,3477.4,3477.1,2.87593]
[1718406408634,4.75365726,3477.4,3477.1,2.87593]
[1718406409063,4.7536598,3477.4,3477.1,2.87593]
[1718406409451,4.25648294,3477.4,3477.1,2.87593]
[1718406409653,0.49717792,3477.3,3477.1,2.87593]
[1718406409854,4.75366086,3477.4,3477.1,2.87593]
[1718406410250,4.25648294,3477.4,3477.1,2.87593]
[1718406410450,0.4971774,3477.3,3477.1,2.87593]
[1718406410650,0.4971774,3477.3,3477.0,2.87602]
[1718406410651,3.3729774,3477.3,3477.0,2.87602]
[1718406410852,2.8758,3477.3,3477.0,2.87602]
[1718406411273,3.37298225,3477.3,3477.0,2.87602]
[1718406411579,2.8758,3477.3,3477.0,2.87602]
[1718406412176,4.57381706,3477.3,3477.0,2.87602]
[1718406412771,2.87588,3477.2,3476.7,2.4229]
[1718406412995,2.8762,3476.8,3476.7,2.4229]
[1718406413147,2.87637,3476.6,3476.3,5.30611]
[1718406414753,2.87637,3476.6,3476.4,2.87653]
[1718406415189,0.10368644,3476.5,3476.4,2.87653]
[1718406415707,4.07697481,3476.9,3476.6,2.87634]
[1718406415981,2.87614,3476.9,3476.6,2.87634]
[1718406416746,2.87629,3476.7,3476.4,2.87653]
[1718406419286,2.87623,3476.8,3476.5,2.87645]
[1718406420249,2.87623,3476.8,3476.6,2.87636]
[1718406421151,2.87623,3476.8,3476.5,2.87643]
[1718406421365,2.87643,3476.6,3476.3,5.3061]
[1718406421557,2.87643,3476.6,3476.3,2.8766]
[1718406421756,4.07713481,3476.7,3476.1,2.87677]
[1718406421969,4.07713481,3476.7,3476.0,2.87686]
[1718406421970,2.87643,3476.6,3476.0,2.87686]
[1718406422187,2.87654,3476.4,3476.0,2.87686]
[1718406422971,2.87668,3476.3,3476.0,2.87686]
[1718406424090,2.87668,3476.3,3475.9,12.48054]
[1718406424947,2.87668,3476.3,3476.0,2.87685]
[1718406426356,2.87668,3476.3,3476.1,2.87677]
[1718406426977,2.87656,3476.4,3476.1,2.87677]
[1718406429483,2.87678,3476.2,3475.9,5.17054]
[1718406429687,2.87676,3476.2,3475.9,2.87694]
[1718406430226,0.10320604,3476.1,3475.9,2.87694]
[1718406432421,0.10320604,3476.1,3476.0,2.87686]
[1718406432810,2.87655,3476.4,3476.0,2.87686]
[1718406433140,2.87663,3476.3,3476.0,2.87686]
[1718406433286,2.97980977,3476.3,3476.0,2.87686]
[1718406434532,0.10317977,3476.3,3476.1,2.87678]
[1718406434825,1.37934995,3476.8,3476.3,2.87659]
[1718406434826,2.87621,3476.8,3476.3,2.87659]
[1718406435045,0.54563948,3476.7,3476.3,2.87659]
[1718406435386,2.87637,3476.6,3476.3,2.87659]
[1718406437188,5.45626476,3477.0,3476.5,2.87643]
[1718406437424,2.87613,3476.9,3476.5,2.87644]
[1718406437640,2.87613,3476.9,3476.6,2.87636]
[1718406437919,2.87606,3477.0,3476.6,2.87636]
[1718406438086,0.93420702,3476.9,3476.6,2.87636]
[1718406438289,3.81033702,3476.9,3476.6,2.87636]
[1718406440207,3.81033702,3476.9,3476.5,2.87643]
[1718406440911,2.87646,3476.5,3476.2,2.87666]
[1718406441111,2.87635,3476.7,3476.1,2.87678]
[1718406441316,0.3810557,3476.6,3476.1,2.87678]
[1718406441511,2.87659,3476.4,3476.1,2.87678]
[1718406444442,2.87662,3476.3,3476.1,2.87678]
[1718406445308,4.25610201,3476.7,3476.4,2.87651]
[1718406445309,2.87635,3476.7,3476.4,2.87651]
[1718406445641,1.37975201,3476.8,3476.5,2.87645]
[1718406445642,4.25597201,3476.8,3476.5,2.87645]
[1718406445937,2.87561,3477.6,3475.9,2.3285]
[1718406445938,2.58058682,3477.2,3476.9,2.87612]
[1718406446149,1.37975201,3477.2,3476.9,2.87612]
[1718406446316,1.87697147,3477.3,3477.0,2.87602]
[1718406446521,1.87697147,3477.3,3476.8,3.9485]
[1718406446522,2.87555,3477.6,3477.3,2.87579]
[1718406447408,2.87563,3477.5,3477.2,2.87585]
[1718406449142,2.87563,3477.5,3476.8,2.3285]
[1718406449447,2.87563,3477.5,3476.9,2.87611]
[1718406449448,2.87589,3477.2,3476.9,2.87611]
[1718406449740,2.87579,3477.3,3477.0,2.87603]
[1718406450940,2.87563,3477.5,3477.1,2.87588]
[1718406451308,2.87563,3477.5,3477.2,2.87586]
[1718406452249,5.45629262,3477.8,3477.4,2.87563]
[1718406452555,2.87544,3477.8,3477.4,2.87564]
[1718406452725,2.87544,3477.8,3477.4,2.8757]
[1718406452726,2.87548,3477.7,3477.4,2.8757]
[1718406453154,2.87558,3477.6,3477.3,2.87578]
[1718406455110,2.87558,3477.6,3476.8,2.3285]
[1718406455111,2.87548,3477.7,3476.9,2.87605]
[1718406455313,2.87555,3477.6,3477.2,2.87586]
[1718406455526,2.87564,3477.5,3477.2,2.87586]
[1718406456227,2.87564,3477.5,3477.3,2.87578]
[1718406459968,0.575111,3477.5,3476.8,2.3285]
[1718406460182,0.575111,3477.5,3476.4,4.62]
[1718406460183,2.87587,3477.2,3476.5,2.287]
[1718406460462,2.8761,3477.0,3476.7,2.87628]
[1718406461021,0.10020434,3476.9,3476.5,5.16345]
[1718406461275,2.87629,3476.7,3476.5,2.287]
[1718406461628,0.10017057,3476.6,3476.4,2.87649]
[1718406461985,2.87645,3476.5,3476.2,2.87664]
[1718406462122,2.87645,3476.5,3476.1,6.78375]
[1718406462327,0.10017057,3476.4,3476.1,8.49282591]
[1718406463030,0.10017057,3476.4,3476.3,2.87661]
[1718406463523,2.87629,3476.7,3476.3,2.87661]
[1718406463724,0.09999047,3476.4,3476.2,2.87668]
[1718406464065,0.54570597,3476.8,3475.8,2.4071691]
[1718406464226,2.87678,3476.2,3475.9,2.87693]
[1718406464421,2.87678,3476.2,3475.8,5.2841991]
[1718406464650,0.09970152,3476.1,3476.0,2.87686]
[1718406467566,2.87663,3476.3,3476.0,2.87686]
[1718406467758,0.09970152,3476.1,3476.0,2.87686]
[1718406467971,2.87632,3476.7,3476.0,1.10379891]
[1718406468143,2.87638,3476.6,3476.3,2.87654]
[1718406470281,2.87645,3476.5,3476.2,2.87669]
[1718406470482,2.87653,3476.4,3476.2,2.87669]
[1718406471792,2.87653,3476.4,3476.1,2.87677]
[1718406472994,2.87653,3476.4,3476.3,0.675]
[1718406473405,2.87663,3476.3,3476.1,2.87677]
[1718406473707,2.87663,3476.3,3476.2,0.675]
[1718406475184,2.97619262,3476.3,3476.2,0.675]
[1718406478202,5.85282262,3476.3,3476.2,0.675]
[1718406479407,2.87681,3476.1,3475.8,2.4071691]
[1718406479618,5.75362,3476.1,3476.0,0.675]
[1718406480229,2.87681,3476.1,3476.0,0.675]
[1718406481326,3.3261509,3476.8,3476.0,0.675]
[1718406481327,2.87663,3476.3,3476.0,0.675]
[1718406481520,2.87663,3476.3,3476.2,0.675]
[1718406482709,2.87625,3476.8,3476.2,1.317869]
[1718406482929,5.45626199,3477.3,3476.7,0.675]
[1718406483093,2.87632,3476.7,3476.4,2.87651]
[1718406483284,2.87632,3476.7,3476.6,0.675]
[1718406484921,2.87623,3476.8,3476.6,0.675]
[1718406485123,2.87623,3476.8,3476.7,0.675]
[1718406488634,2.87623,3476.8,3476.5,2.87645]
[1718406489178,2.87623,3476.8,3476.7,0.675]
[1718406490132,2.87623,3476.8,3476.5,2.87645]
[1718406490455,2.97576635,3476.8,3476.7,0.675]
[1718406491784,2.87641,3476.6,3475.9,2.2713]
[1718406491934,2.87668,3476.3,3476.0,2.87685]
[1718406492132,2.87668,3476.3,3476.2,0.675]
[1718406492535,2.97626515,3476.3,3476.2,0.675]
[1718406494484,0.09958515,3476.3,3476.2,0.675]
[1718406494649,0.09958515,3476.3,3476.2,3.5517]
[1718406494855,2.87646,3476.5,3476.3,2.87661]
[1718406495052,2.87638,3476.6,3476.4,0.675]
[1718406495252,2.87638,3476.6,3476.5,0.675]
[1718406496483,3.373578,3476.7,3476.5,0.675]
[1718406496658,0.497268,3476.7,3476.6,2.87637]
[1718406496858,4.07679481,3477.1,3476.8,2.8762]
[1718406496859,1.87702291,3477.0,3476.8,2.8762]
[1718406497082,0.497268,3477.0,3476.9,0.675]
[1718406497284,2.87596,3477.1,3476.8,2.8762]
[1718406497457,2.87596,3477.1,3476.9,0.675]
[1718406497664,2.87596,3477.1,3476.8,2.8762]
[1718406497859,2.87606,3477.0,3476.7,5.14757]
[1718406498060,2.87614,3476.9,3476.6,3.55136]
[1718406498459,2.87614,3476.9,3476.6,2.87636]
[1718406498662,2.87614,3476.9,3476.6,3.55136]
[1718406499680,2.87629,3476.7,3476.4,2.87653]
[1718406499983,2.87629,3476.7,3476.6,0.675]
[1718406501272,4.30973514,3476.7,3476.6,0.675]
[1718406501473,4.30973514,3476.7,3475.5,0.60363281]
[1718406501474,2.87686,3476.1,3475.7,2.8771]
[1718406501786,4.25614043,3476.4,3476.0,2.87684]
[1718406502087,4.25614043,3476.4,3476.0,3.55184]
[1718406502088,2.87665,3476.3,3476.0,3.55184]
[1718406503049,0.49723785,3476.4,3476.2,3.55165]
[1718406503250,1.37959043,3476.5,3476.2,3.55165]
[1718406503251,4.75328828,3476.5,3476.2,3.55165]
[1718406503557,4.75328828,3476.5,3476.2,0.675]
[1718406503558,2.87654,3476.4,3476.2,0.675]
[1718406505361,0.09920462,3476.3,3476.2,0.675]
[1718406507802,2.97582462,3476.3,3476.2,0.675]
[1718406508358,2.87671,3476.2,3475.9,2.2713]
[1718406508563,2.87671,3476.2,3476.0,0.675]
[1718406508792,2.87685,3476.1,3476.0,0.675]
[1718406509008,0.09912952,3476.1,3476.0,0.675]
[1718406509296,0.09912952,3476.1,3476.0,1.55704391]
[1718406509469,0.09912952,3476.1,3476.0,0.675]
[1718406511068,2.87686,3476.0,3475.8,0.1201691]
[1718406511269,0.09912202,3475.9,3475.8,0.7951691]
[1718406511491,5.85302202,3475.9,3475.8,0.1201691]
[1718406512563,7.18465666,3475.9,3475.8,0.1201691]
[1718406512964,8.38822565,3475.9,3475.8,0.1201691]
[1718406513463,7.18465666,3475.9,3475.8,0.1201691]
[1718406513874,8.38822565,3475.9,3475.8,0.1201691]
[1718406514301,8.88563934,3475.9,3475.8,0.1201691]
[1718406514463,8.38822565,3475.9,3475.8,0.1201691]
[1718406514665,16.07298316,3475.9,3475.8,0.1201691]
[1718406514904,16.92540538,3475.9,3475.8,0.1201691]
[1718406515168,16.92463936,3475.9,3475.8,0.1201691]
[1718406515499,16.92413026,3475.9,3475.8,0.1201691]
[1718406515691,15.41944678,3475.9,3475.8,0.1201691]
[1718406515866,16.92415117,3475.9,3475.8,0.1201691]
[1718406516693,15.41944678,3475.9,3475.8,0.1201691]
[1718406517618,16.92313106,3475.9,3475.8,0.1201691]
[1718406517773,15.41944678,3475.9,3475.8,0.1201691]
[1718406518091,16.92314401,3475.9,3475.8,0.1201691]
[1718406519409,16.79925829,3475.9,3475.8,0.1201691]
[1718406520302,18.0015633,3475.9,3475.8,0.1201691]
[1718406520498,16.79925829,3475.9,3475.8,0.1201691]
[1718406520688,18.00140312,3475.9,3475.8,0.1201691]
[1718406520893,15.41944678,3475.9,3475.8,0.1201691]
[1718406521171,16.79922925,3475.9,3475.8,0.1201691]
[1718406521371,18.00109177,3475.9,3475.8,0.1201691]
[1718406521807,18.00107753,3475.9,3475.8,0.1201691]
[1718406522181,15.41946794,3475.9,3475.8,0.1201691]
[1718406522700,18.00108977,3475.9,3475.8,0.1201691]
[1718406523013,16.79923044,3475.9,3475.8,0.1201691]
[1718406523812,15.41946794,3475.9,3475.8,0.1201691]
[1718406524617,18.00107209,3475.9,3475.8,0.1201691]
[1718406524824,16.79921276,3475.9,3475.8,0.1201691]
[1718406524980,14.9220018,3475.9,3475.8,0.1201691]
[1718406526323,16.0944516,3475.9,3475.8,0.1201691]
[1718406527422,17.4742141,3475.9,3475.8,0.1201691]
[1718406527591,16.7992141,3475.9,3475.8,0.1201691]
[1718406527795,15.4194516,3475.9,3475.8,0.1201691]
[1718406528392,16.7992141,3475.9,3475.8,0.1201691]
[1718406529803,13.9222641,3475.9,3475.8,0.1201691]
[1718406530399,12.5425016,3475.9,3475.8,0.1201691]
[1718406530624,13.92241967,3475.9,3475.8,0.1201691]
[1718406531028,12.5425016,3475.9,3475.8,0.1201691]
[1718406531229,13.92245081,3475.9,3475.8,0.1201691]
[1718406531525,12.5425016,3475.9,3475.8,0.1201691]
[1718406533933,12.5424914,3475.9,3475.8,0.1201691]
[1718406541547,12.54249339,3475.9,3475.8,0.1201691]
[1718406541753,13.74435272,3475.9,3475.8,0.1201691]
[1718406542315,12.54249339,3475.9,3475.8,0.1201691]
[1718406542537,13.74399623,3475.9,3475.8,0.1201691]
[1718406543041,12.54249339,3475.9,3475.8,0.1201691]
[1718406543457,14.04454751,3475.9,3475.8,0.1201691]
[1718406544055,12.54249339,3475.9,3475.8,0.1201691]
[1718406545452,14.04454751,3475.9,3475.8,0.1201691]
[1718406545976,12.54249339,3475.9,3475.8,0.1201691]
[1718406546451,14.04454751,3475.9,3475.8,0.1201691]
[1718406546637,1.79848933,3475.9,3475.8,2.5022691]
[1718406546839,1.97538574,3475.9,3475.8,8.9313291]
[1718406547067,0.59647532,3475.9,3475.8,7.23513701]
[1718406547248,0.09912202,3475.9,3475.8,10.11216701]
[1718406547450,4.75278944,3476.3,3475.9,2.87689]
[1718406547663,0.08769241,3476.2,3476.1,0.675]
[1718406547844,4.25545213,3476.3,3476.1,3.55178]
[1718406548038,1.37882213,3476.3,3476.2,2.3821]
[1718406548234,1.37882213,3476.3,3476.2,5.2588]
[1718406548235,1.87614907,3476.3,3476.2,5.2588]
[1718406548442,4.75268907,3476.4,3476.2,2.3821]
[1718406548645,4.25536213,3476.4,3476.2,2.3821]
[1718406548856,1.87614907,3476.5,3476.2,5.25873]
[1718406549059,4.75259907,3476.5,3476.2,5.25873]
[1718406549246,0.49732694,3476.6,3476.3,0.675]
[1718406549453,4.25504213,3476.8,3476.3,3.55161]
[1718406549766,4.25504213,3476.8,3476.4,2.87652]
[1718406550265,0.08799361,3476.7,3476.4,2.87652]
[1718406550576,2.87622,3476.8,3476.4,2.87652]
[1718406551169,0.08799361,3476.7,3476.4,2.87652]